bitfinex-derivatives/quotes_SOLF0:USTF0_20220101
["timestamp","ask_amount","ask_price","bid_price","bid_amount"]
[1641025006246,32.5309,173.05,172.98,4.0]
[1641025006640,32.5309,173.05,172.99,1.25117874]
[1641025006840,32.5309,173.05,172.99,7.75817874]
[1641025007041,60.52415813,173.08,172.99,7.75817874]
[1641025007241,63.52415813,173.08,172.99,7.75817874]
[1641025007442,13.34360032,173.07,173.0,1.25117874]
[1641025007641,3.0,173.01,173.0,1.25117874]
[1641025008445,3.0,173.01,172.98,5.25117874]
[1641025008945,3.0,173.02,172.98,5.25117874]
[1641025009148,3.0,173.02,172.98,4.0]
[1641025010147,3.0,173.07,172.98,4.0]
[1641025010348,3.0,173.02,172.98,4.0]
[1641025011546,27.66479,173.03,172.98,4.0]
[1641025011747,27.66479,173.03,172.95,4.0]
[1641025012145,3.0,172.99,172.95,4.0]
[1641025012546,3.0,172.99,172.96,1.24533183]
[1641025013046,31.5505,173.02,172.96,1.24533183]
[1641025013246,27.66479,173.03,172.96,1.24533183]
[1641025013447,3.0,173.0,172.95,4.0]
[1641025013646,58.36089,173.03,172.95,4.0]
[1641025013852,3.0,173.01,172.95,4.0]
[1641025014047,3.0,173.02,172.95,4.0]
[1641025014850,3.0,173.02,172.96,1.24535003]
[1641025015050,35.1338,173.07,172.96,1.24535003]
[1641025015349,3.0,173.01,172.96,1.24535003]
[1641025015549,4.08497801,173.03,172.96,1.24535003]
[1641025015949,3.0,172.99,172.96,1.24535003]
[1641025016149,8.534,172.99,172.96,1.24535003]
[1641025016750,5.534,172.99,172.96,1.24535003]
[1641025017050,9.61897801,172.99,172.96,1.24535003]
[1641025018657,4.08497801,172.98,172.96,1.24535003]
[1641025019659,4.08497801,172.97,172.96,1.24535003]
[1641025021159,6.215,172.97,172.96,1.24535003]
[1641025021962,13.29997801,172.97,172.96,1.24535003]
[1641025022161,10.29997801,172.97,172.96,1.24535003]
[1641025022360,13.29997801,172.97,172.96,1.24535003]
[1641025023063,10.29997801,172.97,172.96,1.24535003]
[1641025023961,13.29997801,172.97,172.96,1.24535003]
[1641025024162,10.29997801,172.97,172.96,1.24535003]
[1641025026765,4.08497801,172.97,172.96,7.45835003]
[1641025026971,3.0,173.01,172.96,7.45835003]
[1641025027767,3.0,173.01,172.98,4.0]
[1641025027967,31.7633,173.05,172.98,4.0]
[1641025028469,3.0,173.03,172.98,4.0]
[1641025028870,3.0,173.03,173.0,27.66479]
[1641025029270,3.0,173.05,173.01,4.0]
[1641025029671,3.0,173.05,173.01,5.24535003]
[1641025030176,3.0,173.1,173.01,5.24535003]
[1641025030373,3.0,173.05,173.01,35.29905003]
[1641025030573,3.0,173.05,173.02,1.24535003]
[1641025030873,3.0,173.05,173.03,27.66479]
[1641025032076,3.0,173.06,173.03,27.66479]
[1641025032276,46.19954789,173.11,173.03,32.48579]
[1641025032477,3.0,173.06,173.03,32.48579]
[1641025032976,46.19954789,173.11,173.04,1.24535003]
[1641025033177,3.0,173.05,173.04,1.24535003]
[1641025034076,3.0,173.05,173.02,1.24535003]
[1641025034276,3.0,173.04,173.02,1.24535003]
[1641025034477,3.0,173.05,173.02,1.24535003]
[1641025034776,6.616,173.09,173.02,1.24535003]
[1641025034977,6.616,173.09,173.01,4.0]
[1641025035380,3.0,173.05,173.01,4.0]
[1641025035577,3.0,173.04,173.01,4.0]
[1641025036878,3.0,173.04,173.03,27.66479]
[1641025038483,3.0,173.05,173.03,27.66479]
[1641025039290,3.0,173.05,173.04,1.25159638]
[1641025039687,10.34017976,173.11,173.04,5.25159638]
[1641025039886,3.0,173.06,173.05,4.0]
[1641025040086,3.0,173.06,173.05,10.032]
[1641025040288,10.34017976,173.11,173.05,10.032]
[1641025040489,3.0,173.07,173.05,10.032]
[1641025040788,3.0,173.08,173.05,10.032]
[1641025041088,10.34017976,173.11,173.05,10.032]
[1641025041288,3.0,173.07,173.06,1.25159638]
[1641025041489,3.0,173.08,173.06,1.25159638]
[1641025042489,10.34017976,173.13,173.06,1.25159638]
[1641025042891,3.0,173.08,173.06,1.25159638]
[1641025043097,3.0,173.08,173.07,27.66479]
[1641025043496,3.0,173.09,173.07,27.66479]
[1641025043694,3.0,173.08,173.06,1.25159638]
[1641025043894,3.0,173.09,173.07,1.25159638]
[1641025044095,3.0,173.08,173.07,1.25159638]
[1641025044794,3.0,173.08,173.06,1.25159638]
[1641025045795,10.34017976,173.13,173.06,1.25159638]
[1641025046197,3.0,173.08,173.06,1.25159638]
[1641025046399,4.497,173.1,173.06,1.25159638]
[1641025046899,3.0,173.09,173.06,1.25159638]
[1641025048301,10.34017976,173.13,173.06,1.25159638]
[1641025048502,3.0,173.07,173.06,1.25159638]
[1641025049205,10.34017976,173.13,173.06,1.25159638]
[1641025049405,3.0,173.09,173.06,6.20059638]
[1641025050107,10.34017976,173.13,173.06,6.20059638]
[1641025050305,13.34017976,173.13,173.06,4.949]
[1641025050506,3.0,173.07,173.06,4.949]
[1641025050707,3.0,173.07,173.05,4.0]
[1641025050906,3.0,173.07,173.06,1.25164723]
[1641025053916,6.0,173.07,173.02,12.31564286]
[1641025054218,3.0,173.03,173.02,12.31564286]
[1641025054818,3.0,173.03,172.98,16.31564286]
[1641025055021,3.0,173.08,172.98,16.31564286]
[1641025055220,3.0,173.07,172.98,43.98043286]
[1641025055520,2.34046467,173.03,172.98,43.98043286]
[1641025056119,2.34046467,173.04,173.02,4.0]
[1641025056320,2.34046467,173.05,173.02,9.624]
[1641025056522,2.34046467,173.05,173.04,4.0]
[1641025057121,2.34046467,173.05,173.04,31.66479]
[1641025057724,32.2709,173.1,173.04,31.66479]
[1641025057922,30.66479,173.12,173.04,31.66479]
[1641025057923,2.34046467,173.05,173.04,31.66479]
[1641025058426,30.66479,173.12,173.04,31.66479]
[1641025058624,30.66479,173.12,173.04,62.77999]
[1641025058925,10.33840832,173.11,173.04,62.77999]
[1641025059326,2.34046467,173.05,173.04,62.77999]
[1641025059525,3.0,173.12,173.04,62.77999]
[1641025059926,2.34046467,173.06,173.04,62.77999]
[1641025060127,2.34046467,173.05,173.04,31.66479]
[1641025060327,2.34046467,173.05,173.04,27.66479]
[1641025061126,3.0,173.12,173.04,31.66479]
[1641025061329,2.34046467,173.07,173.06,4.0]
[1641025061527,10.31022151,173.12,173.06,4.0]
[1641025061528,2.34046467,173.09,173.06,4.0]
[1641025061928,2.34046467,173.08,173.06,4.0]
[1641025062329,33.7627,173.13,173.06,4.0]
[1641025062628,2.34046467,173.07,173.06,4.0]
[1641025063029,2.34046467,173.07,173.04,27.66479]
[1641025063230,30.66479,173.11,173.04,27.66479]
[1641025063432,2.34046467,173.05,173.04,27.66479]
[1641025063831,27.66479,173.11,173.04,27.66479]
[1641025064031,2.34046467,173.06,173.04,27.66479]
[1641025064933,27.66479,173.11,173.04,27.66479]
[1641025065134,30.7627,173.13,173.05,4.0]
[1641025065333,2.34046467,173.08,173.07,27.66479]
[1641025065737,2.34046467,173.08,173.05,4.0]
[1641025065940,2.34046467,173.06,173.05,4.0]
[1641025067337,2.34046467,173.06,173.04,33.13079]
[1641025067737,3.0,173.11,173.04,33.13079]
[1641025067937,2.34046467,173.05,173.04,33.13079]
[1641025069740,2.34046467,173.05,173.04,51.51885003]
[1641025071858,31.7347,173.1,173.04,51.51885003]
[1641025072044,3.0,173.11,173.05,4.0]
[1641025074442,2.34046467,173.06,173.05,4.0]
[1641025077745,2.34046467,173.06,173.04,27.66479]
[1641025077947,3.0,173.09,173.03,12.31564286]
[1641025078147,14.69841144,173.13,173.03,12.31564286]
[1641025078148,2.34046467,173.04,173.03,12.31564286]
[1641025079051,2.34046467,173.04,173.02,4.0]
[1641025079450,3.0,173.08,173.02,4.0]
[1641025079651,2.34046467,173.04,173.02,10.177]
[1641025082352,31.2382,173.09,173.02,10.177]
[1641025082553,2.34046467,173.05,173.02,10.177]
[1641025082752,31.2382,173.09,173.02,10.177]
[1641025083055,31.2382,173.09,173.02,28.56181837]
[1641025083655,2.34046467,173.04,173.02,28.56181837]
[1641025083957,2.34046467,173.03,173.02,28.56181837]
[1641025084155,5.34046467,173.03,173.02,24.56181837]
[1641025084356,11.96946467,173.03,173.02,18.38481837]
[1641025084555,11.96946467,173.03,173.02,15.06611837]
[1641025084755,11.96946467,173.03,172.98,32.8246936]
[1641025084956,3.0,173.02,173.01,12.30180113]
[1641025085357,5.34046467,173.02,173.01,12.30180113]
[1641025085956,2.34046467,173.02,172.97,4.0]
[1641025086156,2.34046467,172.98,172.97,4.0]
[1641025086356,2.34046467,172.98,172.95,27.66479]
[1641025086759,2.34046467,173.0,172.95,27.66479]
[1641025086959,2.34046467,173.0,172.95,32.91679]
[1641025087356,2.34046467,172.99,172.95,32.91679]
[1641025087758,2.34046467,172.98,172.95,32.91679]
[1641025088158,4.10133182,173.03,172.95,32.91679]
[1641025088357,2.34046467,172.99,172.95,32.91679]
[1641025088758,4.10133182,173.02,172.95,32.91679]
[1641025089058,2.34046467,173.0,172.95,32.91679]
[1641025089659,4.10133182,173.01,172.99,4.0]
[1641025089859,6.44179649,173.01,172.99,10.317]
[1641025090061,4.10133182,173.01,172.99,10.317]
[1641025090261,2.34046467,173.0,172.99,10.317]
[1641025090458,4.10133182,173.01,172.99,10.317]
[1641025090459,6.44179649,173.01,172.99,6.317]
[1641025091061,4.10133182,173.01,172.99,10.317]
[1641025091460,4.10133182,173.04,173.0,27.66479]
[1641025091759,2.34046467,173.03,173.0,27.66479]
[1641025091963,4.10133182,173.04,173.0,27.66479]
[1641025092160,2.34046467,173.02,173.0,27.66479]
[1641025094064,2.34046467,173.02,173.01,1.25032346]
[1641025098270,4.10133182,173.04,173.01,1.25032346]
[1641025098470,6.44179649,173.04,173.01,1.25032346]
[1641025098669,2.34046467,173.03,173.02,4.0]
[1641025099473,2.34046467,173.03,173.02,1.25032346]
[1641025100175,2.34046467,173.03,173.01,1.25032346]
[1641025105483,2.34046467,173.03,173.01,7.31987501]
[1641025107184,2.34046467,173.03,173.01,1.25032346]
[1641025107386,4.10133182,173.04,173.01,1.25032346]
[1641025107785,2.34046467,173.02,173.01,1.25032346]
[1641025107986,2.34046467,173.02,173.01,7.319884]
[1641025112491,4.10133182,173.05,173.01,7.319884]
[1641025112689,4.10133182,173.05,173.01,13.232884]
[1641025113390,2.34046467,173.02,173.01,13.232884]
[1641025113790,2.34046467,173.02,173.01,11.98256054]
[1641025114891,4.10133182,173.05,173.01,11.98256054]
[1641025115093,4.10133182,173.05,173.01,24.2915279]
[1641025115094,1.82801376,173.02,173.01,24.2915279]
[1641025115291,4.10133182,173.05,173.01,24.2915279]
[1641025115491,31.0208,173.08,173.01,24.2915279]
[1641025115692,4.10304552,173.04,173.01,5.913]
[1641025115892,1.82801376,173.02,173.01,5.913]
[1641025116493,4.10304552,173.04,173.01,5.913]
[1641025117093,31.0208,173.08,173.01,5.913]
[1641025117094,4.10304552,173.05,173.01,24.29143061]
[1641025117296,1.82801376,173.02,173.01,24.29143061]
[1641025120602,4.10304552,173.05,173.01,24.29143061]
[1641025121702,1.82801376,173.02,173.01,24.29143061]
[1641025123602,4.10304552,173.05,173.01,24.29143061]
[1641025124303,1.82801376,173.02,173.01,24.29143061]
[1641025125107,1.82801376,173.02,173.01,5.913]
[1641025125406,1.82801376,173.02,173.0,43.97375736]
[1641025125609,4.10304552,173.04,173.0,43.97375736]
[1641025125806,1.82801376,173.03,173.0,43.97375736]
[1641025126609,1.82801376,173.03,173.01,18.37842757]
[1641025126909,1.82801376,173.03,173.01,24.95442757]
[1641025127512,4.10304552,173.05,173.01,24.95442757]
[1641025127710,1.82801376,173.02,173.01,24.95442757]
[1641025129215,1.82801376,173.02,173.01,7.82631073]
[1641025129815,1.82801376,173.02,173.01,26.20471504]
[1641025131715,1.82801376,173.02,173.01,7.82631073]
[1641025132014,1.82801376,173.03,173.01,7.82631073]
[1641025132216,1.82801376,173.03,173.01,20.13527809]
[1641025132416,1.82801376,173.03,173.01,26.20471796]
[1641025132917,1.82801376,173.03,173.02,1.25031073]
[1641025139527,1.82801376,173.03,173.01,19.62871796]
[1641025139728,4.10304552,173.05,173.01,19.62871796]
[1641025140029,1.82801376,173.02,173.01,19.62871796]
[1641025141335,1.82801376,173.02,173.01,1.25031073]
[1641025141534,1.82801376,173.03,173.01,1.25031073]
[1641025141734,1.82801376,173.03,173.01,7.12131073]
[1641025142235,1.82801376,173.03,173.01,25.49722847]
[1641025142934,1.82801376,173.03,173.02,1.25031073]
[1641025148040,1.82801376,173.03,173.02,13.55927809]
[1641025148839,1.82801376,173.03,173.02,1.25031073]
[1641025149439,1.82801376,173.03,173.01,18.37591774]
[1641025149640,6.337,173.03,173.01,18.37591774]
[1641025149841,1.82801376,173.02,173.01,18.37591774]
[1641025150040,1.82801376,173.02,172.99,27.66479]
[1641025150041,5.93105928,173.02,172.99,27.66479]
[1641025150341,1.82801376,173.0,172.98,12.30896736]
[1641025150540,10.19504552,173.02,172.98,12.30896736]
[1641025150541,1.82801376,172.99,172.98,12.30896736]
[1641025152442,1.82801376,172.99,172.97,10.06951845]
[1641025152646,4.10304552,173.03,172.97,10.06951845]
[1641025152842,1.82801376,172.98,172.97,10.06951845]
[1641025153043,1.82801376,172.98,172.97,6.06951845]
[1641025155347,1.82801376,172.98,172.97,10.06951845]
[1641025156048,1.82801376,172.98,172.97,4.0]
[1641025156851,1.82801376,173.0,172.97,4.0]
[1641025157150,1.82801376,173.03,172.99,5.17198624]
[1641025157350,4.10304552,173.05,172.97,4.85]
[1641025157351,4.10304552,173.05,173.02,4.0]
[1641025157551,4.10304552,173.07,173.02,8.711]
[1641025157752,1.82801376,173.03,173.02,8.711]
[1641025161552,1.82801376,173.03,173.01,27.66479]
[1641025162252,1.82801376,173.02,173.01,27.66479]
[1641025162853,1.82801376,173.02,173.01,31.66479]
[1641025166258,1.82801376,173.02,173.01,37.73393174]
[1641025168965,1.82801376,173.02,173.01,33.73393174]
[1641025171869,1.82801376,173.02,173.01,37.73393174]
[1641025172870,1.82801376,173.02,173.01,33.73393174]
[1641025173070,1.82801376,173.02,173.01,37.73393174]
[1641025173472,1.82801376,173.02,173.01,33.73393174]
[1641025174071,1.82801376,173.02,173.01,27.66479]
[1641025175475,0.77087943,173.02,173.01,27.66479]
[1641025175777,3.0,173.07,173.01,27.66479]
[1641025175978,0.77087943,173.02,173.01,27.66479]
[1641025176977,0.77087943,173.02,173.01,31.66479]
[1641025178582,0.77087943,173.02,173.01,27.66479]
[1641025182182,0.77087943,173.02,173.01,31.66479]
[1641025182582,0.77087943,173.02,173.01,27.66479]
[1641025183784,7.08449817,173.09,173.01,31.66479]
[1641025184188,3.0,173.08,173.01,31.66479]
[1641025184888,3.0,173.07,173.01,27.66479]
[1641025185088,3.0,173.08,173.01,27.66479]
[1641025185389,4.08449817,173.06,173.02,18.32236237]
[1641025187391,4.08449817,173.06,173.02,22.32236237]
[1641025188194,4.08449817,173.06,173.05,4.0]
[1641025188395,4.08449817,173.06,173.02,22.32236237]
[1641025189995,4.08449817,173.06,173.03,1.25021511]
[1641025192799,4.08449817,173.06,173.02,19.57257748]
[1641025193699,4.08449817,173.06,173.02,23.57257748]
[1641025194103,4.08449817,173.06,173.05,4.0]
[1641025194301,4.08449817,173.06,173.05,10.121]
[1641025194701,4.08449817,173.09,173.05,23.62463885]
[1641025195902,4.08449817,173.09,173.06,1.25021511]
[1641025198405,34.58729817,173.1,173.06,1.25021511]
[1641025199107,34.58729817,173.1,173.06,13.50363885]
[1641025199808,4.08449817,173.1,173.06,13.50363885]
[1641025200408,4.08449817,173.11,173.06,13.50363885]
[1641025201909,4.08449817,173.1,173.06,13.50363885]
[1641025202111,4.08449817,173.1,173.08,27.66479]
[1641025202410,4.08449817,173.11,173.09,1.25021511]
[1641025203211,7.08449817,173.1,173.09,1.25021511]
[1641025203811,9.112,173.11,173.05,4.0]
[1641025204013,3.0,173.12,173.05,4.0]
[1641025204212,3.0,173.12,173.07,27.66479]
[1641025204912,4.1017395,173.1,173.07,27.66479]
[1641025205412,4.1017395,173.1,173.08,1.25021511]
[1641025207015,4.1017395,173.09,173.06,13.50363885]
[1641025207716,4.1017395,173.09,173.06,1.25021511]
[1641025208620,8.3977395,173.09,173.06,1.25021511]
[1641025209617,11.3977395,173.09,173.06,1.25021511]
[1641025210018,4.1017395,173.07,173.06,1.25021511]
[1641025210717,7.296,173.09,173.03,1.25021511]
[1641025211120,3.0,173.08,173.03,1.25021511]
[1641025211717,3.0,173.08,173.02,18.32232275]
[1641025211718,4.10268669,173.06,173.02,19.57253786]
[1641025212319,4.10268669,173.06,173.02,23.57253786]
[1641025213218,4.10268669,173.06,173.02,19.57253786]
[1641025213921,4.10268669,173.07,173.03,13.50363885]
[1641025214522,4.10268669,173.06,173.02,19.57253786]
[1641025218724,4.10268669,173.06,173.02,13.50363885]
[1641025218923,4.10268669,173.05,173.02,1.25021511]
[1641025221526,3.0,173.04,173.02,1.25021511]
[1641025221824,3.0,173.03,173.02,1.25021511]
[1641025222026,7.10268669,173.03,173.02,1.25021511]
[1641025222225,4.10268669,173.03,173.02,1.25021511]
[1641025222424,7.10268669,173.03,173.02,1.25021511]
[1641025222626,7.10268669,173.03,172.99,12.25342374]
[1641025223826,4.10268669,173.02,172.98,12.25342374]
[1641025224227,31.76747669,173.02,172.98,12.25342374]
[1641025229436,4.10268669,173.02,172.98,12.25342374]
[1641025231038,4.10268669,173.02,172.98,17.30142374]
[1641025231241,7.10268669,173.05,173.0,4.0]
[1641025231441,4.10268669,173.05,173.0,4.0]
[1641025232042,4.10268669,173.05,173.04,4.0]
[1641025232242,4.10268669,173.05,173.04,37.39379]
[1641025232642,62.58556813,173.13,173.04,37.39379]
[1641025232643,4.10268669,173.08,173.04,37.39379]
[1641025233242,7.10268669,173.11,173.04,37.39379]
[1641025233643,3.0,173.1,173.04,33.39379]
[1641025234648,7.10268669,173.1,173.04,5.729]
[1641025234848,7.10268669,173.1,173.01,16.25342374]
[1641025235048,4.10268669,173.08,173.01,4.0]
[1641025236351,4.10268669,173.08,173.01,31.66479]
[1641025236552,4.573,173.09,173.01,31.66479]
[1641025237252,4.08514233,173.08,173.01,31.66479]
[1641025237852,3.0,173.1,173.01,31.66479]
[1641025238255,7.08487094,173.1,173.01,31.66479]
[1641025239054,3.0,173.1,173.01,31.66479]
[1641025239855,4.08470934,173.1,173.01,31.66479]
[1641025240556,3.0,173.11,173.01,31.66479]
[1641025241260,7.08452998,173.11,173.01,43.91821374]
[1641025241958,3.0,173.11,173.01,43.91821374]
[1641025242658,4.10213608,173.08,173.04,12.25342374]
[1641025243359,11.78313608,173.08,173.04,12.25342374]
[1641025243557,7.681,173.08,173.04,12.25342374]
[1641025243759,4.10239793,173.07,173.03,12.25342374]
[1641025244057,4.10239793,173.07,173.04,4.0]
[1641025244258,3.0,173.11,173.04,4.0]
[1641025244458,3.0,173.11,173.04,31.66479]
[1641025244758,4.10234677,173.07,173.04,31.66479]
[1641025245461,3.0,173.11,173.04,31.66479]
[1641025246061,30.66479,173.12,173.04,31.66479]
[1641025246762,4.10169831,173.1,173.06,12.25342374]
[1641025247365,4.10194899,173.09,173.05,18.32178808]
[1641025248266,4.10194899,173.09,173.04,27.66479]
[1641025248267,4.1020451,173.08,173.04,39.91821374]
[1641025249166,4.10227704,173.07,173.04,27.66479]
[1641025249766,3.0,173.11,173.04,27.66479]
[1641025250567,4.10197517,173.08,173.04,12.25342374]
[1641025251066,3.0,173.1,173.04,12.25342374]
[1641025251268,4.10229846,173.07,173.03,42.32992374]
[1641025251467,4.10229846,173.07,173.03,12.25342374]
[1641025251866,3.0,173.1,173.03,12.25342374]
[1641025252066,3.0,173.1,173.02,32.1815]
[1641025252568,7.08054612,173.11,173.04,4.0]
[1641025253167,3.0,173.11,173.04,4.0]
[1641025253967,30.66479,173.12,173.04,4.0]
[1641025254169,7.08013471,173.12,173.04,4.0]
[1641025254567,7.08013471,173.12,173.06,27.66479]
[1641025254969,3.0,173.12,173.07,4.0]
[1641025255167,32.7262,173.13,173.07,4.0]
[1641025255368,3.0,173.13,173.07,4.0]
[1641025256973,3.0,173.13,173.06,27.66479]
[1641025259672,3.0,173.11,173.06,27.66479]
[1641025259873,7.954,173.11,173.03,12.25342374]
[1641025260273,7.954,173.11,173.02,32.1815]
[1641025260779,7.954,173.11,173.05,31.66479]
[1641025260977,4.08013471,173.08,173.05,31.66479]
[1641025261575,4.08013471,173.08,173.05,27.66479]
[1641025262476,4.08013471,173.07,173.05,27.66479]
[1641025263077,4.08013471,173.07,173.06,1.25015036]
[1641025264580,3.0,173.09,173.06,1.25015036]
[1641025265181,3.0,173.1,173.06,1.25015036]
[1641025266081,4.10222354,173.07,173.06,1.25015036]
[1641025267185,7.10222354,173.07,173.06,1.25015036]
[1641025267382,3.0,173.07,173.06,1.25015036]
[1641025267782,3.0,173.08,173.06,1.25015036]
[1641025268684,8.347,173.09,173.06,1.25015036]
[1641025268884,3.0,173.09,173.06,1.25015036]
[1641025269084,3.0,173.08,173.06,1.25015036]
[1641025270186,4.09940848,173.07,173.06,1.25015036]
[1641025272291,4.09940848,173.08,173.06,1.25015036]
[1641025275593,4.09940848,173.07,173.06,1.25015036]
[1641025277597,4.09940848,173.07,173.03,1.25015036]
[1641025278496,3.0,173.08,173.03,19.56768784]
[1641025278497,7.09940848,173.08,173.03,19.56768784]
[1641025278698,4.09940848,173.08,173.03,19.56768784]
[1641025279297,4.09940848,173.08,173.04,27.66479]
[1641025279898,4.09940848,173.08,173.05,1.25015036]
[1641025281098,4.09940848,173.09,173.05,1.25015036]
[1641025283004,7.09940848,173.09,173.05,1.25015036]
[1641025283603,3.0,173.08,173.05,1.25015036]
[1641025284605,4.09940848,173.07,173.03,1.25015036]
[1641025286706,3.0,173.05,173.03,1.25015036]
[1641025286907,8.155,173.05,173.03,1.25015036]
[1641025287309,5.155,173.05,173.03,1.25015036]
[1641025287711,5.155,173.05,173.01,13.5035741]
[1641025288709,9.25440848,173.05,173.01,1.25015036]
[1641025292214,4.09940848,173.05,173.01,1.25015036]
[1641025293216,3.0,173.04,173.01,1.25015036]
[1641025295022,7.09940848,173.04,173.01,1.25015036]
[1641025296323,7.09940848,173.04,172.99,19.56762693]
[1641025298126,4.09940848,173.04,172.99,19.56762693]
[1641025298523,7.09940848,173.04,172.99,19.56762693]
[1641025299523,7.09940848,173.04,172.99,13.5035741]
[1641025299723,7.09940848,173.04,172.99,1.25015036]
[1641025300123,3.0,173.04,172.99,1.25015036]
[1641025301825,7.09940848,173.04,172.98,1.25015036]
[1641025302225,4.09940848,173.04,172.98,5.25015036]
[1641025303429,30.66479,173.05,172.99,1.25015036]
[1641025303629,30.66479,173.05,172.99,5.78615036]
[1641025304234,31.76419848,173.05,173.0,1.25015036]
[1641025305235,3.0,173.03,173.0,1.25015036]
[1641025306635,3.0,173.03,172.98,1.25015036]
[1641025307435,4.09940848,173.04,172.98,1.25015036]
[1641025307635,4.09940848,173.04,172.98,7.95915036]
[1641025308036,4.09940848,173.04,172.99,1.25015036]
[1641025308936,31.76419848,173.05,172.99,1.25015036]
[1641025309536,4.09940848,173.02,172.99,1.25015036]
[1641025310537,27.66479,173.05,172.99,13.5035741]
[1641025310538,4.09940848,173.03,172.99,13.5035741]
[1641025312540,4.09940848,173.04,173.0,12.25342374]
[1641025313242,4.09940848,173.03,172.99,13.5035741]
[1641025313846,31.0791,173.07,172.99,13.5035741]
[1641025314047,31.0791,173.07,173.01,4.0]
[1641025314447,31.0791,173.07,173.02,27.66479]
[1641025314648,35.85936813,173.11,173.04,4.0]
[1641025314848,35.85936813,173.12,173.04,4.0]
[1641025315047,35.85936813,173.12,173.03,30.8655]
[1641025315248,3.0,173.11,173.03,30.8655]
[1641025315649,3.0,173.11,173.04,1.25013735]
[1641025316350,13.34111809,173.12,173.03,12.25342374]
[1641025316548,13.34111809,173.12,173.03,1.25010126]
[1641025317150,13.34111809,173.12,173.02,62.20539]
[1641025317351,13.34111809,173.12,173.03,18.32213928]
[1641025317950,13.34111809,173.12,173.03,19.57226682]
[1641025318853,10.34111809,173.12,173.03,13.50355128]
[1641025319053,10.34111809,173.12,173.03,1.25012754]
[1641025319753,35.5745,173.13,173.02,62.20539]
[1641025320253,35.5745,173.13,173.04,4.0]
[1641025320754,35.5745,173.13,173.03,1.24758754]
[1641025320953,3.0,173.1,173.03,1.24758754]
[1641025321154,3.0,173.12,173.05,1.24758754]
[1641025321356,35.5745,173.13,173.05,1.24758754]
[1641025321754,35.5745,173.13,173.02,57.24539]
[1641025321955,10.32118088,173.12,173.03,1.24756709]
[1641025322459,27.66479,173.1,173.03,1.24756709]
[1641025322657,27.66479,173.1,173.04,4.0]
[1641025323056,27.66479,173.1,173.02,57.24539]
[1641025323457,27.66479,173.1,173.03,1.2475659]
[1641025324260,27.66479,173.1,173.02,57.24539]
[1641025324662,3.0,173.09,173.02,57.24539]
[1641025324861,3.0,173.08,173.03,1.24755927]
[1641025325060,34.0024,173.09,173.03,1.24755927]
[1641025325462,31.0024,173.09,173.03,1.24755927]
[1641025325860,34.0024,173.09,173.0,39.91821374]
[1641025326061,34.0024,173.09,173.01,1.24750475]
[1641025326464,31.0024,173.09,173.01,1.24750475]
[1641025326664,10.32436491,173.08,173.0,1.24747865]
[1641025326865,10.32436491,173.08,173.01,4.0]
[1641025327264,10.32436491,173.08,173.01,9.121]
[1641025327463,31.0024,173.09,173.01,9.121]
[1641025327763,31.0024,173.09,173.02,1.24753065]
[1641025328163,31.0024,173.09,173.01,9.121]
[1641025328364,31.0024,173.09,173.02,12.25342374]
[1641025329066,31.0024,173.09,173.02,1.25008504]
[1641025330466,31.0024,173.09,173.01,12.25342374]
[1641025330666,31.0024,173.09,173.0,6.06883857]
[1641025330667,4.10283291,173.06,173.02,12.25342374]
[1641025331467,37.2604,173.09,173.02,12.25342374]
[1641025331670,4.1033063,173.03,173.01,4.0]
[1641025331867,9.8893063,173.03,173.01,4.0]
[1641025332568,5.786,173.03,173.02,1.25005125]
[1641025333171,5.786,173.03,173.0,12.25342374]
[1641025333370,9.88935339,173.03,173.0,1.25004654]
[1641025333968,5.786,173.03,173.0,1.25004654]
[1641025334470,5.786,173.03,173.0,19.57242133]
[1641025335272,31.0024,173.09,173.0,19.57242133]
[1641025335970,4.10315763,173.04,173.0,19.57242133]
[1641025336470,31.0024,173.09,173.0,19.57242133]
[1641025337374,4.1030714,173.04,173.0,19.57242133]
[1641025337973,5.192,173.05,173.0,19.57242133]
[1641025338574,9.2883124,173.05,172.99,19.57242133]
[1641025338873,4.0963124,173.05,172.99,19.57242133]